fUST/lending_fUST_20260501
["ID","MTS","AMOUNT","RATE_DAILY","PERIOD"]
[421420796,1777612241000,-4888.430466,0.00019,2]
[421420792,1777612241000,-454.673974,0.00019,2]
[421420791,1777612241000,-454.673982,0.00019,2]
[421420798,1777612241000,-4888.430466,0.00019,2]
[421420808,1777612241000,-4888.430466,0.00019,2]
[421420809,1777612241000,-4888.430456,0.00019,2]
[421420797,1777612241000,-4888.430466,0.00019,2]
[421420807,1777612241000,-4888.430466,0.00019,2]
[421420805,1777612241000,-4888.430466,0.00019,2]
[421420799,1777612241000,-4888.430466,0.00019,2]
[421420806,1777612241000,-4888.430466,0.00019,2]
[421420801,1777612241000,-4888.430466,0.00019,2]
[421420804,1777612241000,-4888.430466,0.00019,2]
[421420802,1777612241000,-4888.430466,0.00019,2]
[421420803,1777612241000,-4888.430466,0.00019,2]
[421420810,1777612241000,-4417.553658,0.00019,2]
[421420820,1777612241000,-4417.553658,0.00019,2]
[421420821,1777612241000,-4417.553658,0.00019,2]
[421420818,1777612241000,-4417.553658,0.00019,2]
[421420814,1777612241000,-4417.553658,0.00019,2]
[421420813,1777612241000,-4417.553658,0.00019,2]
[421420812,1777612241000,-4417.553658,0.00019,2]
[421420824,1777612241000,-4417.553658,0.00019,2]
[421420811,1777612241000,-4417.553658,0.00019,2]
[421420815,1777612241000,-4417.553658,0.00019,2]
[421420849,1777612241000,-1385.885834,0.00019,2]
[421420848,1777612241000,-1385.885834,0.00019,2]
[421420853,1777612241000,-1385.885824,0.00019,2]
[421420888,1777612241000,-708.321305,0.00019063,2]
[421420892,1777612241000,-269.589219,0.00019063,2]
[421420896,1777612241000,-500.0,0.00019173,2]
[421420891,1777612241000,-347.517351,0.00019063,2]
[421420889,1777612241000,-1256.64261,0.00019063,2]
[421420886,1777612241000,-7761.494452,0.00019,2]
[421420893,1777612241000,-3636.25734132,0.000191,2]
[421420894,1777612241000,-155.0,0.00019172,2]
[421420895,1777612241000,-500.0,0.00019173,2]
[421420887,1777612241000,-7761.494452,0.00019,2]
[421420890,1777612241000,-449.750312,0.00019063,7]
[421420898,1777612241000,-500.0,0.00019173,2]
[421420900,1777612241000,-213.60243403,0.00019175,2]
[421420897,1777612241000,-235.45875387,0.00019173,2]
[421420902,1777612241000,-3700.4672,0.00019178,2]
[421420899,1777612241000,-500.0,0.00019173,2]
[421420907,1777612241000,-500.0,0.00019178,2]
[421420904,1777612241000,-2158.6028,0.00019178,2]
[421420905,1777612241000,-10174.307403,0.00019178,2]
[421420903,1777612241000,-3700.4672,0.00019178,2]
[421420906,1777612241000,-1106.57202,0.00019178,2]
[421420901,1777612241000,-501.01009147,0.00019178,2]
[421420909,1777612241000,-500.0,0.00019178,2]
[421420912,1777612241000,-500.0,0.00019178,2]
[421420910,1777612241000,-500.0,0.00019178,2]
[421420908,1777612241000,-500.0,0.00019178,2]
[421420913,1777612241000,-384.09787951,0.00019178,2]
[421420885,1777612241000,-7761.494452,0.00019,2]
[421420881,1777612241000,-804.177038,0.00019,2]
[421420911,1777612241000,-500.0,0.00019178,2]
[421420876,1777612241000,-804.177038,0.00019,2]
[421420872,1777612241000,-804.177038,0.00019,2]
[421420855,1777612241000,-172.94428,0.00019,2]
[421420858,1777612241000,-172.94428,0.00019,2]
[421420856,1777612241000,-172.94428,0.00019,2]
[421420864,1777612241000,-172.94428,0.00019,2]
[421420857,1777612241000,-172.94428,0.00019,2]
[421420859,1777612241000,-172.94428,0.00019,2]
[421420863,1777612241000,-172.94428,0.00019,2]
[421420860,1777612241000,-172.94428,0.00019,2]
[421420865,1777612241000,-172.944276,0.00019,2]
[421420861,1777612241000,-172.94428,0.00019,2]
[421420854,1777612241000,-172.94428,0.00019,2]
[421420869,1777612241000,-151.0,0.00019,2]
[421420868,1777612241000,-151.0,0.00019,2]
[421420862,1777612241000,-172.94428,0.00019,2]
[421420867,1777612241000,-151.0,0.00019,2]
[421420870,1777612241000,-284.371409,0.00019,2]
[421420877,1777612241000,-804.177038,0.00019,2]
[421420878,1777612241000,-804.177038,0.00019,2]
[421420879,1777612241000,-804.177038,0.00019,2]
[421420874,1777612241000,-804.177038,0.00019,2]
[421420883,1777612241000,-163.770502,0.00019,2]
[421420882,1777612241000,-804.177037,0.00019,2]
[421420880,1777612241000,-804.177038,0.00019,2]
[421420875,1777612241000,-804.177038,0.00019,2]
[421420873,1777612241000,-804.177038,0.00019,2]
[421420871,1777612241000,-804.177038,0.00019,2]
[421420866,1777612241000,-151.0,0.00019,2]
[421420884,1777612241000,-7761.494452,0.00019,2]
[421420949,1777612242000,-417.40165409,0.00019178,2]
[421420955,1777612242000,-1377.48,0.00019178,2]
[421420954,1777612242000,-500.0,0.00019178,2]
[421420952,1777612242000,-500.0,0.00019178,2]
[421420950,1777612242000,-500.0,0.00019178,2]
[421420946,1777612242000,-500.0,0.00019178,2]
[421420953,1777612242000,-500.0,0.00019178,2]
[421420951,1777612242000,-528.14,0.00019178,2]
[421420947,1777612242000,-645.12711719,0.00019178,2]
[421420945,1777612242000,-526.06,0.00019178,2]
[421420959,1777612242000,-500.0,0.00019178,2]
[421420948,1777612242000,-649.71,0.00019178,2]
[421420957,1777612242000,-912.82,0.00019178,2]
[421420972,1777612242000,-2355.8,0.00019178,2]
[421420958,1777612242000,-500.0,0.00019178,2]
[421420967,1777612242000,-500.0,0.00019178,2]
[421420964,1777612242000,-500.0,0.00019178,2]
[421420962,1777612242000,-500.0,0.00019178,2]
[421420963,1777612242000,-535.71675734,0.00019178,2]
[421420969,1777612242000,-500.0,0.00019178,2]
[421420968,1777612242000,-619.67,0.00019178,2]
[421420961,1777612242000,-500.0,0.00019178,2]
[421420966,1777612242000,-587.53,0.00019178,2]
[421420965,1777612242000,-500.0,0.00019178,2]
[421420971,1777612242000,-500.0,0.00019178,2]
[421420970,1777612242000,-500.0,0.00019178,2]
[421420956,1777612242000,-951.42,0.00019178,2]
[421420960,1777612242000,-709.56,0.00019178,2]
[421420942,1777612242000,-500.0,0.00019178,2]
[421420927,1777612242000,-500.0,0.00019178,2]
[421420939,1777612242000,-500.0,0.00019178,2]
[421420974,1777612242000,-500.0,0.00019178,2]
[421420919,1777612242000,-2742.87,0.00019178,2]
[421420914,1777612242000,-1214.71,0.00019178,2]
[421420918,1777612242000,-500.0,0.00019178,2]
[421420915,1777612242000,-2767.04,0.00019178,2]
[421420917,1777612242000,-661.55,0.00019178,2]
[421420916,1777612242000,-500.0,0.00019178,2]
[421420920,1777612242000,-500.0,0.00019178,2]
[421420924,1777612242000,-858.99,0.00019178,2]
[421420922,1777612242000,-500.0,0.00019178,2]
[421420925,1777612242000,-530.23,0.00019178,2]
[421420931,1777612242000,-500.0,0.00019178,2]
[421420923,1777612242000,-995.57,0.00019178,2]
[421420944,1777612242000,-1274.11,0.00019178,2]
[421420921,1777612242000,-865.3,0.00019178,2]
[421420930,1777612242000,-575.59,0.00019178,2]
[421420929,1777612242000,-500.0,0.00019178,2]
[421420928,1777612242000,-570.22,0.00019178,2]
[421420935,1777612242000,-410.20605929,0.00019178,2]
[421420934,1777612242000,-500.0,0.00019178,2]
[421420936,1777612242000,-1940.54,0.00019178,2]
[421420932,1777612242000,-500.0,0.00019178,2]
[421420943,1777612242000,-500.0,0.00019178,2]
[421420941,1777612242000,-500.0,0.00019178,2]
[421420940,1777612242000,-205.43507047,0.00019178,2]
[421420933,1777612242000,-523.0,0.00019178,2]
[421420937,1777612242000,-500.0,0.00019178,2]
[421420938,1777612242000,-539.01,0.00019178,2]
[421420926,1777612242000,-500.0,0.00019178,2]
[421420973,1777612242000,-628.54,0.00019178,2]
[421420981,1777612242000,-500.0,0.00019178,2]
[421420976,1777612242000,-500.0,0.00019178,2]
[421421010,1777612242000,-1718.43,0.00019178,2]
[421421019,1777612242000,-500.0,0.00019178,2]
[421421008,1777612242000,-500.0,0.00019178,2]
[421421011,1777612242000,-500.0,0.00019178,2]
[421421015,1777612242000,-500.0,0.00019178,2]
[421421007,1777612242000,-500.0,0.00019178,2]
[421421014,1777612242000,-500.0,0.00019178,2]
[421421018,1777612242000,-500.0,0.00019178,2]
[421421012,1777612242000,-500.0,0.00019178,2]
[421421016,1777612242000,-500.0,0.00019178,2]
[421421013,1777612242000,-500.0,0.00019178,2]
[421421032,1777612242000,-500.0,0.00019178,2]
[421421026,1777612242000,-536.79,0.00019178,2]
[421421017,1777612242000,-1184.96,0.00019178,2]
[421421023,1777612242000,-500.0,0.00019178,2]
[421421020,1777612242000,-500.0,0.00019178,2]
[421421031,1777612242000,-500.0,0.00019178,2]
[421421021,1777612242000,-500.0,0.00019178,2]
[421421028,1777612242000,-1539.24,0.00019178,2]
[421421029,1777612242000,-500.0,0.00019178,2]
[421421035,1777612242000,-500.0,0.00019178,2]
[421421024,1777612242000,-1104.56,0.00019178,2]
[421421034,1777612242000,-500.0,0.00019178,2]
[421421033,1777612242000,-1366.89,0.00019178,2]
[421421030,1777612242000,-751.99,0.00019178,2]
[421421037,1777612242000,-3785.37,0.00019178,2]
[421421036,1777612242000,-500.0,0.00019178,2]
[421421038,1777612242000,-500.0,0.00019178,2]
[421421022,1777612242000,-500.0,0.00019178,2]
[421421009,1777612242000,-500.0,0.00019178,2]
[421420975,1777612242000,-500.0,0.00019178,2]
[421421001,1777612242000,-500.0,0.00019178,2]
[421421002,1777612242000,-161.15473042,0.00019178,2]
[421420978,1777612242000,-500.0,0.00019178,2]
[421421039,1777612242000,-500.0,0.00019178,2]
[421420977,1777612242000,-500.0,0.00019178,2]
[421420980,1777612242000,-1714.67,0.00019178,2]
[421420979,1777612242000,-880.63,0.00019178,2]
[421420983,1777612242000,-500.0,0.00019178,2]
[421420993,1777612242000,-500.0,0.00019178,2]
[421420986,1777612242000,-579.65,0.00019178,2]
[421420987,1777612242000,-554.31,0.00019178,2]
[421420982,1777612242000,-1092.46,0.00019178,2]
[421420984,1777612242000,-500.0,0.00019178,2]
[421420988,1777612242000,-500.0,0.00019178,2]
[421420989,1777612242000,-940.57,0.00019178,2]
[421420994,1777612242000,-848.46,0.00019178,2]
[421420985,1777612242000,-500.0,0.00019178,2]
[421420990,1777612242000,-1254.67,0.00019178,2]
[421420998,1777612242000,-701.02,0.00019178,2]
[421420999,1777612242000,-530.94,0.00019178,2]
[421420997,1777612242000,-508.0,0.00019178,2]
[421420996,1777612242000,-500.0,0.00019178,2]
[421421006,1777612242000,-626.81,0.00019178,2]
[421421003,1777612242000,-643.14,0.00019178,2]
[421421000,1777612242000,-605.90645069,0.00019178,2]
[421421004,1777612242000,-500.0,0.00019178,2]
[421420995,1777612242000,-500.0,0.00019178,2]
[421420992,1777612242000,-500.0,0.00019178,2]
[421420991,1777612242000,-2314.63,0.00019178,2]
[421421005,1777612242000,-500.0,0.00019178,2]
[421421088,1777612243000,-1196.72,0.00019178,2]
[421421083,1777612243000,-700.46,0.00019178,2]
[421421077,1777612243000,-2411.78,0.00019178,2]
[421421080,1777612243000,-432.23925624,0.00019178,2]
[421421084,1777612243000,-500.0,0.00019178,2]
[421421070,1777612243000,-500.0,0.00019178,2]
[421421082,1777612243000,-500.0,0.00019178,2]
[421421087,1777612243000,-500.0,0.00019178,2]
[421421076,1777612243000,-1505.71,0.00019178,2]
[421421075,1777612243000,-500.0,0.00019178,2]
[421421086,1777612243000,-500.0,0.00019178,2]
[421421079,1777612243000,-500.0,0.00019178,2]
[421421090,1777612243000,-2831.92,0.00019178,2]
[421421116,1777612243000,-1731.29,0.00019178,2]
[421421091,1777612243000,-454.54627462,0.00019178,2]
[421421103,1777612243000,-500.0,0.00019178,2]
[421421093,1777612243000,-500.0,0.00019178,2]
[421421095,1777612243000,-6858.02,0.00019178,2]
[421421094,1777612243000,-500.0,0.00019178,2]
[421421104,1777612243000,-500.0,0.00019178,2]
[421421096,1777612243000,-582.75749311,0.00019178,2]
[421421099,1777612243000,-500.0,0.00019178,2]
[421421102,1777612243000,-6689.64,0.00019178,2]
[421421097,1777612243000,-500.0,0.00019178,2]
[421421100,1777612243000,-3859.34,0.00019178,2]
[421421098,1777612243000,-500.0,0.00019178,2]
[421421101,1777612243000,-647.79,0.00019178,2]
[421421066,1777612243000,-1236.23,0.00019178,2]
[421421085,1777612243000,-2124.09,0.00019178,2]
[421421071,1777612243000,-1525.98,0.00019178,2]
[421421055,1777612243000,-1338.27,0.00019178,2]
[421421069,1777612243000,-633.29132741,0.00019178,2]
[421421043,1777612243000,-501.78,0.00019178,2]
[421421106,1777612243000,-1000.0,0.00019178,2]
[421421040,1777612243000,-729.21,0.00019178,2]
[421421041,1777612243000,-500.0,0.00019178,2]
[421421046,1777612243000,-594.01,0.00019178,2]
[421421047,1777612243000,-500.0,0.00019178,2]
[421421044,1777612243000,-896.69,0.00019178,2]
[421421045,1777612243000,-500.0,0.00019178,2]
[421421042,1777612243000,-500.0,0.00019178,2]
[421421050,1777612243000,-500.0,0.00019178,2]
[421421060,1777612243000,-763.56,0.00019178,2]
[421421051,1777612243000,-500.0,0.00019178,2]
[421421052,1777612243000,-500.0,0.00019178,2]
[421421056,1777612243000,-500.0,0.00019178,2]
[421421061,1777612243000,-1254.76,0.00019178,2]
[421421054,1777612243000,-1022.37,0.00019178,2]
[421421049,1777612243000,-500.0,0.00019178,2]
[421421053,1777612243000,-861.83429,0.00019178,2]
[421421059,1777612243000,-500.0,0.00019178,2]
[421421057,1777612243000,-648.29,0.00019178,2]
[421421058,1777612243000,-500.0,0.00019178,2]
[421421062,1777612243000,-579.59550172,0.00019178,2]
[421421064,1777612243000,-500.0,0.00019178,2]
[421421063,1777612243000,-1878.97,0.00019178,2]
[421421073,1777612243000,-848.91,0.00019178,2]
[421421074,1777612243000,-500.0,0.00019178,2]
[421421065,1777612243000,-500.0,0.00019178,2]
[421421068,1777612243000,-500.0,0.00019178,2]
[421421072,1777612243000,-500.0,0.00019178,2]
[421421067,1777612243000,-500.0,0.00019178,2]
[421421048,1777612243000,-500.0,0.00019178,2]
[421421112,1777612243000,-1249.05,0.00019178,2]
[421421111,1777612243000,-616.29934346,0.00019178,2]
[421421138,1777612243000,-500.0,0.00019178,2]
[421421152,1777612243000,-500.0,0.00019178,2]
[421421154,1777612243000,-1009.05,0.00019178,2]
[421421150,1777612243000,-300.0,0.00019178,2]
[421421149,1777612243000,-580.29,0.00019178,2]
[421421151,1777612243000,-822.95,0.00019178,2]
[421421148,1777612243000,-6416.48,0.00019178,2]
[421421155,1777612243000,-500.0,0.00019178,2]
[421421145,1777612243000,-922.54,0.00019178,2]
[421421153,1777612243000,-931.04,0.00019178,2]
[421421147,1777612243000,-500.0,0.00019178,2]
[421421146,1777612243000,-599.18,0.00019178,2]
[421421157,1777612243000,-500.0,0.00019178,2]
[421421167,1777612243000,-2697.68,0.00019178,2]
[421421169,1777612243000,-514.06,0.00019178,2]
[421421171,1777612243000,-500.0,0.00019178,2]
[421421165,1777612243000,-307.22121115,0.00019178,2]
[421421162,1777612243000,-500.0,0.00019178,2]
[421421158,1777612243000,-500.0,0.00019178,2]
[421421156,1777612243000,-500.0,0.00019178,2]
[421421161,1777612243000,-500.0,0.00019178,2]
[421421164,1777612243000,-500.0,0.00019178,2]
[421421160,1777612243000,-529.57360585,0.00019178,2]
[421421166,1777612243000,-500.0,0.00019178,2]
[421421163,1777612243000,-500.0,0.00019178,2]
[421421159,1777612243000,-519.89,0.00019178,2]
[421421172,1777612243000,-500.0,0.00019178,2]
[421421173,1777612243000,-231.74803065,0.00019178,2]
[421421108,1777612243000,-500.0,0.00019178,2]
[421421141,1777612243000,-500.0,0.00019178,2]
[421421140,1777612243000,-652.6,0.00019178,2]
[421421174,1777612243000,-500.0,0.00019178,2]
[421421142,1777612243000,-628.36,0.00019178,2]
[421421139,1777612243000,-500.0,0.00019178,2]
[421421109,1777612243000,-500.0,0.00019178,2]
[421421115,1777612243000,-500.0,0.00019178,2]
[421421110,1777612243000,-500.0,0.00019178,2]
[421421118,1777612243000,-500.0,0.00019178,2]
[421421117,1777612243000,-1024.99,0.00019178,2]
[421421114,1777612243000,-500.0,0.00019178,2]
[421421113,1777612243000,-500.0,0.00019178,2]
[421421107,1777612243000,-500.0,0.00019178,2]
[421421130,1777612243000,-3189.34,0.00019178,2]
[421421131,1777612243000,-500.0,0.00019178,2]
[421421120,1777612243000,-500.0,0.00019178,2]
[421421127,1777612243000,-785.96,0.00019178,2]
[421421121,1777612243000,-857.97,0.00019178,2]
[421421105,1777612243000,-500.0,0.00019178,2]
[421421125,1777612243000,-636.05,0.00019178,2]
[421421137,1777612243000,-639.26,0.00019178,2]
[421421135,1777612243000,-500.0,0.00019178,2]
[421421132,1777612243000,-1075.93,0.00019178,2]
[421421134,1777612243000,-500.0,0.00019178,2]
[421421119,1777612243000,-500.0,0.00019178,2]
[421421136,1777612243000,-500.0,0.00019178,2]
[421421133,1777612243000,-500.0,0.00019178,2]
[421421144,1777612243000,-500.0,0.00019178,2]
[421421129,1777612243000,-865.73,0.00019178,2]
[421421123,1777612243000,-500.0,0.00019178,2]
[421421128,1777612243000,-500.0,0.00019178,2]
[421421126,1777612243000,-500.0,0.00019178,2]
[421421122,1777612243000,-500.0,0.00019178,2]
[421421143,1777612243000,-500.0,0.00019178,2]
[421421215,1777612244000,-500.0,0.00019178,2]
[421421213,1777612244000,-500.0,0.00019178,2]
[421421216,1777612244000,-500.0,0.00019178,2]
[421421226,1777612244000,-500.0,0.00019178,2]
[421421224,1777612244000,-629.74,0.00019178,2]
[421421207,1777612244000,-500.0,0.00019178,2]
[421421214,1777612244000,-500.0,0.00019178,2]
[421421208,1777612244000,-500.0,0.00019178,2]
[421421209,1777612244000,-1003.59,0.00019178,2]
[421421206,1777612244000,-500.0,0.00019178,2]
[421421212,1777612244000,-4113.92,0.00019178,2]
[421421225,1777612244000,-500.0,0.00019178,2]
[421421217,1777612244000,-500.0,0.00019178,2]
[421421232,1777612244000,-17371.52,0.00019178,2]
[421421221,1777612244000,-500.0,0.00019178,2]
[421421220,1777612244000,-500.0,0.00019178,2]
[421421219,1777612244000,-2129.38,0.00019178,2]
[421421223,1777612244000,-500.0,0.00019178,2]
[421421222,1777612244000,-4919.06,0.00019178,2]
[421421227,1777612244000,-754.38,0.00019178,2]
[421421230,1777612244000,-500.0,0.00019178,2]
[421421231,1777612244000,-600.01,0.00019178,2]
[421421238,1777612244000,-500.0,0.00019178,2]
[421421229,1777612244000,-500.0,0.00019178,2]
[421421239,1777612244000,-6152.64,0.00019178,2]
[421421228,1777612244000,-500.0,0.00019178,2]
[421421205,1777612244000,-5283.02,0.00019178,2]
[421421218,1777612244000,-6282.04,0.00019178,2]
[421421210,1777612244000,-500.0,0.00019178,2]
[421421192,1777612244000,-811.57,0.00019178,2]
[421421204,1777612244000,-588.29,0.00019178,2]
[421421175,1777612244000,-500.0,0.00019178,2]
[421421176,1777612244000,-500.0,0.00019178,2]
[421421183,1777612244000,-500.0,0.00019178,2]
[421421177,1777612244000,-500.0,0.00019178,2]
[421421182,1777612244000,-392.182478,0.00019178,2]
[421421178,1777612244000,-1286.41,0.00019178,2]
[421421185,1777612244000,-392.182473,0.00019178,2]
[421421184,1777612244000,-392.182478,0.00019178,2]
[421421181,1777612244000,-958.99,0.00019178,2]
[421421179,1777612244000,-392.182478,0.00019178,2]
[421421180,1777612244000,-500.0,0.00019178,2]
[421421187,1777612244000,-500.0,0.00019178,2]
[421421198,1777612244000,-500.0,0.00019178,2]
[421421211,1777612244000,-500.0,0.00019178,2]
[421421197,1777612244000,-500.0,0.00019178,2]
[421421189,1777612244000,-1106.06,0.00019178,2]
[421421193,1777612244000,-3361.67,0.00019178,2]
[421421196,1777612244000,-500.0,0.00019178,2]
[421421195,1777612244000,-500.0,0.00019178,2]
[421421188,1777612244000,-500.0,0.00019178,2]
[421421194,1777612244000,-500.0,0.00019178,2]
[421421190,1777612244000,-3275.17,0.00019178,2]
[421421191,1777612244000,-500.0,0.00019178,2]
[421421199,1777612244000,-500.0,0.00019178,2]
[421421203,1777612244000,-585.19,0.00019178,2]
[421421202,1777612244000,-500.0,0.00019178,2]
[421421200,1777612244000,-500.0,0.00019178,2]
[421421201,1777612244000,-500.0,0.00019178,2]
[421421186,1777612244000,-500.0,0.00019178,2]
[421421234,1777612244000,-500.0,0.00019178,2]
[421421242,1777612244000,-277.06914554,0.00019178,2]
[421421233,1777612244000,-500.0,0.00019178,2]
[421421279,1777612244000,-11615.33,0.00019178,2]
[421421271,1777612244000,-500.0,0.00019178,2]
[421421275,1777612244000,-1632.68,0.00019178,2]
[421421273,1777612244000,-500.0,0.00019178,2]
[421421280,1777612244000,-500.0,0.00019178,2]
[421421272,1777612244000,-4937.18,0.00019178,2]
[421421281,1777612244000,-500.0,0.00019178,2]
[421421274,1777612244000,-500.0,0.00019178,2]
[421421282,1777612244000,-1317.63,0.00019178,2]
[421421276,1777612244000,-500.0,0.00019178,2]
[421421277,1777612244000,-500.0,0.00019178,2]
[421421278,1777612244000,-500.0,0.00019178,2]
[421421288,1777612244000,-5385.56,0.00019178,2]
[421421286,1777612244000,-955.23,0.00019178,2]
[421421285,1777612244000,-6200.63,0.00019178,2]
[421421284,1777612244000,-919.6,0.00019178,2]
[421421283,1777612244000,-500.0,0.00019178,2]
[421421289,1777612244000,-4826.85,0.00019178,2]
[421421290,1777612244000,-1225.73,0.00019178,2]
[421421291,1777612244000,-500.0,0.00019178,2]
[421421293,1777612244000,-500.0,0.00019178,2]
[421421292,1777612244000,-500.0,0.00019178,2]
[421421295,1777612244000,-500.0,0.00019178,2]
[421421294,1777612244000,-1008.29,0.00019178,2]
[421421296,1777612244000,-500.0,0.00019178,2]
[421421297,1777612244000,-500.0,0.00019178,2]
[421421236,1777612244000,-3308.63,0.00019178,2]
[421421269,1777612244000,-500.0,0.00019178,2]
[421421270,1777612244000,-1038.87,0.00019178,2]
[421421287,1777612244000,-1037.37,0.00019178,2]
[421421261,1777612244000,-500.0,0.00019178,2]
[421421268,1777612244000,-897.7,0.00019178,2]
[421421237,1777612244000,-500.0,0.00019178,2]
[421421235,1777612244000,-583.68,0.00019178,2]
[421421253,1777612244000,-500.0,0.00019178,2]
[421421241,1777612244000,-500.0,0.00019178,2]
[421421254,1777612244000,-3211.4,0.00019178,2]
[421421251,1777612244000,-500.0,0.00019178,2]
[421421243,1777612244000,-500.0,0.00019178,2]
[421421240,1777612244000,-500.0,0.00019178,2]
[421421245,1777612244000,-500.0,0.00019178,2]
[421421246,1777612244000,-556.94,0.00019178,2]
[421421248,1777612244000,-752.53,0.00019178,2]
[421421247,1777612244000,-500.0,0.00019178,2]
[421421249,1777612244000,-659.03,0.00019178,2]
[421421252,1777612244000,-10757.21,0.00019178,2]
[421421250,1777612244000,-500.0,0.00019178,2]
[421421262,1777612244000,-500.0,0.00019178,2]
[421421244,1777612244000,-15001.52,0.00019178,2]
[421421263,1777612244000,-500.0,0.00019178,2]
[421421265,1777612244000,-500.0,0.00019178,2]
[421421264,1777612244000,-3165.11,0.00019178,2]
[421421259,1777612244000,-500.0,0.00019178,2]
[421421260,1777612244000,-500.0,0.00019178,2]
[421421267,1777612244000,-1174.06,0.00019178,2]
[421421266,1777612244000,-500.0,0.00019178,2]
[421421257,1777612244000,-633.56,0.00019178,2]
[421421256,1777612244000,-1015.19,0.00019178,2]
[421421255,1777612244000,-500.0,0.00019178,2]
[421421258,1777612244000,-2432.68,0.00019178,2]
[421421315,1777612245000,-500.0,0.00019178,2]
[421421325,1777612245000,-637.5,0.00019178,2]
[421421313,1777612245000,-6669.12,0.00019178,2]
[421421319,1777612245000,-514.28,0.00019178,2]
[421421318,1777612245000,-4998.15,0.00019178,2]
[421421324,1777612245000,-500.0,0.00019178,2]
[421421335,1777612245000,-500.0,0.00019178,2]
[421421323,1777612245000,-500.0,0.00019178,2]
[421421333,1777612245000,-500.0,0.00019178,2]
[421421326,1777612245000,-5196.65,0.00019178,2]
[421421327,1777612245000,-500.0,0.00019178,2]
[421421329,1777612245000,-932.4,0.00019178,2]
[421421331,1777612245000,-500.0,0.00019178,2]
[421421332,1777612245000,-500.0,0.00019178,2]
[421421328,1777612245000,-500.0,0.00019178,2]
[421421320,1777612245000,-500.0,0.00019178,2]
[421421330,1777612245000,-500.0,0.00019178,2]
[421421334,1777612245000,-417.20256294,0.00019178,2]
[421421314,1777612245000,-500.0,0.00019178,2]
[421421302,1777612245000,-1155.92,0.00019178,2]
[421421317,1777612245000,-2749.69,0.00019178,2]
[421421336,1777612245000,-3699.43,0.00019178,2]
[421421298,1777612245000,-1292.04,0.00019178,2]
[421421309,1777612245000,-500.0,0.00019178,2]
[421421301,1777612245000,-500.0,0.00019178,2]
[421421308,1777612245000,-1000.0,0.00019178,2]
[421421299,1777612245000,-500.0,0.00019178,2]
[421421303,1777612245000,-500.0,0.00019178,2]
[421421300,1777612245000,-500.0,0.00019178,2]
[421421306,1777612245000,-2848.82,0.00019178,2]
[421421305,1777612245000,-10792.7,0.00019178,2]
[421421307,1777612245000,-500.0,0.00019178,2]
[421421304,1777612245000,-500.0,0.00019178,2]
[421421310,1777612245000,-905.61,0.00019178,2]
[421421311,1777612245000,-10387.209747,0.00019178,2]
[421421312,1777612245000,-500.0,0.00019178,2]
[421421322,1777612245000,-500.0,0.00019178,2]